[Event "12th National Amateur Chess-ch 2025"]
[Site "Bihar"]
[Date "2025.03.29"]
[Round "8.3"]
[White "Sham R"]
[Black "Reyan"]
[Result "1-0"]
[Annotator "RC"]
[ECO "B87"]
[WhiteElo "2128"]
[BlackElo "2005"]
[PlyCount "153"]
[EventDate "2025.03.25"]
[EventCountry "IND"]
[SourceTitle "playchess.com"]
[Source "ChessBase"]
[SourceQuality "1"]
[TimeControl "5400+30"]

1. e4 {[%emt 0:03:42]} c5 {[%emt 0:01:29]} 2. Nf3 {[%emt 0:00:02]} d6 {[%emt 0:00:08]} 3. d4 {[%emt 0:00:01]} cxd4 {[%emt 0:00:06]} 4. Nxd4 {[%emt 0:00:02]} Nf6 {[%emt 0:00:08]} 5. Nc3 {[%emt 0:00:03]} a6 {[%emt 0:00:08]} 6. Bc4 {[%emt 0:00:02]} e6 {[%emt 0:00:08]} 7. Be3 {[%emt 0:00:10]} b5 {[%emt 0:00:19]} 8. Bb3 {[%emt 0:00:02]} Be7 {[%emt 0:00:18]} 9. Qe2 {[%emt 0:00:06]} O-O {[%emt 0:08:57]} 10. O-O-O {[%emt 0:00:11]} Bd7 {[%emt 0:08:49]} 11. a3 {[%emt 0:02:41]} b4 {[%emt 0:09:22]} 12. axb4 {[%emt 0:00:36]} a5 {[%emt 0:00:01]} 13. b5 {[%emt 0:17:25]} a4 {[%emt 0:00:06]} 14. Bc4 {[%emt 0:03:13]} Qa5 {[%emt 0:18:14]} 15. Kb1 {[%emt 0:00:43]} Rc8 {[%emt 0:05:18]} 16. Bd2 {[%emt 0:22:07]} Qc7 {[%emt 0:04:10]} 17. Ba2 {[%emt 0:10:16]} a3 {[%emt 0:03:10]} 18. Bc1 {[%emt 0:00:03]} axb2 {[%emt 0:21:58]} 19. Bxb2 {[%emt 0:00:02]} Qa5 {[%emt 0:00:00]} 20. Nb3 {[%emt 0:06:08]} Qa7 {[%emt 0:00:02]} 21. Nc1 {[%emt 0:08:11]} Ne8 {[%emt 0:06:19]} 22. Bb3 {[%emt 0:03:17]} Bf6 {[%emt 0:02:06]} 23. Na4 {[%emt 0:02:30]} Bxb2 {[%emt 0:02:34]} 24. Kxb2 {[%emt 0:00:03]} d5 {[%emt 0:04:10]} 25. exd5 {[%emt 0:00:56]} Nd6 {[%emt 0:00:01]} 26. b6 {[%emt 0:02:13]} Qa5 {[%emt 0:00:52]} 27. dxe6 {[%emt 0:09:08]} Bxa4 {[%emt 0:00:05]} 28. exf7+ {[%emt 0:01:30]} Kh8 {[%emt 0:03:48]} 29. Qe7 {[%emt 0:04:00]} Qc3+ {[%emt 0:01:37]} 30. Kb1 {[%emt 0:00:20]} Bxb3 {[%emt 0:00:23]} 31. f8=Q+ {[%emt 0:00:53]} Rxf8 {[%emt 0:00:05]} 32. Nxb3 {[%emt 0:01:16]} Rc8 {[%emt 0:00:01]} 33. Rd2 {[%emt 0:02:17]} Ra1+ {[%emt 0:01:34]} 34. Nxa1 {[%emt 0:00:02]} Qxd2 {[%emt 0:00:01]} 35. Qe3 {[%emt 0:01:22]} Qb4+ {[%emt 0:00:58]} 36. Qb3 {[%emt 0:00:20]} Qc5 {[%emt 0:00:14]} 37. Rd1 {[%emt 0:01:05]} h6 {[%emt 0:00:45]} 38. Rd5 {[%emt 0:00:39]} Qc6 {[%emt 0:00:26]} 39. Qd3 {[%emt 0:01:22]} Qxb6+ {[%emt 0:00:18]} 40. Nb3 {[%emt 0:00:02]} Nc4 {[%emt 0:00:01]} 41. Qd4 {[%emt 0:00:56]} Na3+ {[%emt 0:01:09]} 42. Kb2 {[%emt 0:00:05]} Qxd4+ {[%emt 0:00:38]} 43. Nxd4 {[%emt 0:00:02]} Nc4+ {[%emt 0:00:15]} 44. Kb3 {[%emt 0:00:20]} Nd2+ {[%emt 0:00:29]} 45. Kb4 {[%emt 0:00:53]} Na6+ {[%emt 0:00:28]} 46. Ka5 {[%emt 0:00:25]} Nc7 {[%emt 0:00:42]} 47. Rd7 {[%emt 0:00:55]} Nc4+ {[%emt 0:00:26]} 48. Kb4 {[%emt 0:00:32]} Nb6 {[%emt 0:00:29]} 49. Rd6 {[%emt 0:00:17]} Nbd5+ {[%emt 0:00:21]} 50. Kc5 {[%emt 0:00:27]} Nf6 {[%emt 0:00:34]} 51. Rc6 {[%emt 0:00:30]} Na6+ {[%emt 0:00:46]} 52. Kb6 {[%emt 0:00:16]} Nd5+ {[%emt 0:00:27]} 53. Kxa6 {[%emt 0:00:15]} Nb4+ {[%emt 0:00:01]} 54. Kb5 {[%emt 0:00:52]} Nxc6 {[%emt 0:00:16]} 55. Nxc6 {[%emt 0:00:01]} Rf8 {[%emt 0:00:29]} 56. f3 {[%emt 0:00:07]} Rf5+ {[%emt 0:00:09]} 57. Kb6 {[%emt 0:00:15]} Rh5 {[%emt 0:00:33]} 58. h3 {[%emt 0:00:09]} Rd5 {[%emt 0:00:55]} 59. c4 {[%emt 0:00:13]} Rd2 {[%emt 0:00:00]} 60. g4 {[%emt 0:00:02]} Rd3 {[%emt 0:00:26]} 61. Ne5 {[%emt 0:01:01]} Re3 {[%emt 0:00:32]} 62. f4 {[%emt 0:00:03]} g5 {[%emt 0:01:09]} 63. c5 {[%emt 0:02:00]} Rb3+ {[%emt 0:01:01]} 64. Ka6 {[%emt 0:00:41]} Rxh3 {[%emt 0:00:27]} 65. fxg5 {[%emt 0:00:16]} hxg5 {[%emt 0:00:00]} 66. c6 {[%emt 0:00:19]} Ra3+ {[%emt 0:01:00]} 67. Kb6 {[%emt 0:00:05]} Rb3+ {[%emt 0:00:18]} 68. Kc5 {[%emt 0:00:03]} Rb8 {[%emt 0:00:29]} 69. c7 {[%emt 0:00:02]} Ra8 {[%emt 0:00:46]} 70. Kd6 {[%emt 0:00:20]} Kg7 {[%emt 0:00:33]} 71. Kd7 {[%emt 0:00:36]} Kf6 {[%emt 0:00:24]} 72. Nf3 {[%emt 0:00:20]} Ra7 {[%emt 0:00:36]} 73. Kd8 {[%emt 0:00:07]} Ra3 {[%emt 0:00:29]} 74. c8=Q {[%emt 0:00:05]} Rd3+ {[%emt 0:00:04]} 75. Ke8 {[%emt 0:00:10]} Re3+ {[%emt 0:00:40]} 76. Kf8 {[%emt 0:00:01]} Re4 {[%emt 0:00:49]} 77. Qf5# {[%emt 0:00:04]} 1-0

[Event "12th National Amateur Chess-ch 2025"]
[Site "Bihar"]
[Date "2025.03.29"]
[Round "8.4"]
[White "Daksh Goyal"]
[Black "Arhan Jain"]
[Result "1/2-1/2"]
[Annotator "RC"]
[ECO "E05"]
[WhiteElo "2079"]
[BlackElo "1914"]
[PlyCount "176"]
[EventDate "2025.03.25"]
[EventCountry "IND"]
[SourceTitle "playchess.com"]
[Source "ChessBase"]
[SourceQuality "1"]
[TimeControl "5400+30"]

1. Nf3 {[%emt 0:02:44]} d5 {[%emt 0:00:15]} 2. g3 {[%emt 0:00:05]} Nf6 {[%emt 0:00:07]} 3. Bg2 {[%emt 0:00:07]} e6 {[%emt 0:00:12]} 4. d4 {[%emt 0:00:05]} Be7 {[%emt 0:00:29]} 5. O-O {[%emt 0:00:31]} O-O {[%emt 0:00:08]} 6. c4 {[%emt 0:00:03]} dxc4 {[%emt 0:00:17]} 7. Ne5 {[%emt 0:00:04]} Nc6 {[%emt 0:00:44]} 8. Bxc6 {[%emt 0:00:11]} bxc6 {[%emt 0:00:04]} 9. Nxc6 {[%emt 0:00:05]} Qe8 {[%emt 0:00:04]} 10. Nxe7+ {[%emt 0:00:06]} Qxe7 {[%emt 0:00:03]} 11. Qa4 {[%emt 0:00:06]} e5 {[%emt 0:01:58]} 12. dxe5 {[%emt 0:09:35]} Qxe5 {[%emt 0:01:33]} 13. Qxc4 {[%emt 0:17:50]} Be6 {[%emt 0:02:54]} 14. Qd3 {[%emt 0:02:29]} Rfd8 {[%emt 0:02:54]} 15. Qe3 {[%emt 0:00:59]} Qh5 {[%emt 0:07:42]} 16. f3 {[%emt 0:00:54]} Re8 {[%emt 0:08:10]} 17. Qg5 {[%emt 0:29:23]} Bc4 {[%emt 0:03:47]} 18. Qxh5 {[%emt 0:01:49]} Nxh5 {[%emt 0:01:17]} 19. Nc3 {[%emt 0:01:14]} Bxe2 {[%emt 0:00:52]} 20. Rf2 {[%emt 0:00:51]} Bc4 {[%emt 0:06:11]} 21. Bd2 {[%emt 0:00:31]} c6 {[%emt 0:03:19]} 22. b3 {[%emt 0:06:26]} Bd5 {[%emt 0:10:15]} 23. Rc1 {[%emt 0:07:21]} Rac8 {[%emt 0:01:33]} 24. Nxd5 {[%emt 0:06:37]} cxd5 {[%emt 0:00:05]} 25. Rxc8 {[%emt 0:00:39]} Rxc8 {[%emt 0:00:03]} 26. Be3 {[%emt 0:00:09]} a6 {[%emt 0:02:25]} 27. g4 {[%emt 0:04:32]} Nf6 {[%emt 0:00:05]} 28. g5 {[%emt 0:00:24]} Ne8 {[%emt 0:03:38]} 29. Rd2 {[%emt 0:02:03]} Rd8 {[%emt 0:00:07]} 30. Bb6 {[%emt 0:02:14]} Rd6 {[%emt 0:01:57]} 31. Bc5 {[%emt 0:00:10]} Rd8 {[%emt 0:00:33]} 32. Rd4 {[%emt 0:00:55]} f6 {[%emt 0:03:18]} 33. gxf6 {[%emt 0:01:37]} gxf6 {[%emt 0:02:03]} 34. Kf2 {[%emt 0:01:06]} Kf7 {[%emt 0:02:23]} 35. Rh4 {[%emt 0:00:30]} Rc8 {[%emt 0:00:54]} 36. b4 {[%emt 0:00:20]} Kg6 {[%emt 0:00:24]} 37. Rg4+ {[%emt 0:00:41]} Kf7 {[%emt 0:00:11]} 38. Rh4 {[%emt 0:00:08]} Kg6 {[%emt 0:00:07]} 39. Rd4 {[%emt 0:00:01]} Rd8 {[%emt 0:00:38]} 40. Rd3 {[%emt 0:00:35]} Nc7 {[%emt 0:01:50]} 41. Ra3 {[%emt 0:03:57]} Rd7 {[%emt 0:01:51]} 42. Bb6 {[%emt 0:00:25]} d4 {[%emt 0:01:03]} 43. Bxc7 {[%emt 0:00:42]} Rxc7 {[%emt 0:00:04]} 44. Rxa6 {[%emt 0:00:30]} Rc2+ {[%emt 0:00:02]} 45. Kg3 {[%emt 0:00:21]} d3 {[%emt 0:02:20]} 46. Rd6 {[%emt 0:00:06]} Rxa2 {[%emt 0:01:30]} 47. Rxd3 {[%emt 0:00:02]} Rb2 {[%emt 0:00:05]} 48. Rd4 {[%emt 0:00:06]} h5 {[%emt 0:01:13]} 49. Rc4 {[%emt 0:01:16]} Rb1 {[%emt 0:00:35]} 50. h3 {[%emt 0:00:59]} Rb2 {[%emt 0:00:56]} 51. Rf4 {[%emt 0:00:31]} Kg5 {[%emt 0:00:49]} 52. Re4 {[%emt 0:00:29]} Kf5 {[%emt 0:02:43]} 53. Rh4 {[%emt 0:00:50]} Kg5 {[%emt 0:00:28]} 54. Rd4 {[%emt 0:00:11]} Kg6 {[%emt 0:02:05]} 55. Kf4 {[%emt 0:00:46]} Rh2 {[%emt 0:01:12]} 56. b5 {[%emt 0:00:12]} Rb2 {[%emt 0:00:09]} 57. Rd5 {[%emt 0:00:05]} Rb4+ {[%emt 0:00:08]} 58. Ke3 {[%emt 0:00:23]} Rb3+ {[%emt 0:00:18]} 59. Ke4 {[%emt 0:01:14]} h4 {[%emt 0:01:44]} 60. Rc5 {[%emt 0:00:27]} Kf7 {[%emt 0:01:15]} 61. Kf4 {[%emt 0:00:40]} Rb4+ {[%emt 0:03:34]} 62. Kf5 {[%emt 0:00:17]} Ke7 {[%emt 0:00:24]} 63. Rc7+ {[%emt 0:00:33]} Kd6 {[%emt 0:00:11]} 64. Rc6+ {[%emt 0:00:22]} Kd7 {[%emt 0:00:38]} 65. Rb6 {[%emt 0:00:52]} Rb3 {[%emt 0:00:17]} 66. Kg4 {[%emt 0:00:19]} Ke7 {[%emt 0:02:30]} 67. f4 {[%emt 0:00:28]} Rb4 {[%emt 0:00:04]} 68. Kf5 {[%emt 0:00:10]} Rb3 {[%emt 0:00:10]} 69. Re6+ {[%emt 0:00:54]} Kd7 {[%emt 0:00:10]} 70. Rxf6 {[%emt 0:00:39]} Rxh3 {[%emt 0:02:09]} 71. Rh6 {[%emt 0:00:13]} Rb3 {[%emt 0:01:46]} 72. Rh7+ {[%emt 0:00:32]} Ke8 {[%emt 0:00:23]} 73. Ke6 {[%emt 0:00:27]} Kf8 {[%emt 0:00:33]} 74. Rh5 {[%emt 0:00:26]} h3 {[%emt 0:00:35]} 75. Kd6 {[%emt 0:00:17]} h2 {[%emt 0:02:36]} 76. Kc6 {[%emt 0:00:25]} Rc3+ {[%emt 0:01:02]} 77. Kb6 {[%emt 0:00:46]} Rc2 {[%emt 0:00:10]} 78. Ka5 {[%emt 0:00:27]} Kf7 {[%emt 0:01:14]} 79. b6 {[%emt 0:00:57]} Rc5+ {[%emt 0:04:06]} 80. Rxc5 {[%emt 0:00:02]} h1=Q {[%emt 0:00:04]} 81. f5 {[%emt 0:00:49]} Qa8+ {[%emt 0:01:20]} 82. Kb5 {[%emt 0:00:20]} Ke7 {[%emt 0:01:49]} 83. Rc7+ {[%emt 0:00:29]} Kd6 {[%emt 0:00:21]} 84. f6 {[%emt 0:00:38]} Qd5+ {[%emt 0:01:44]} 85. Ka6 {[%emt 0:00:08]} Qd3+ {[%emt 0:02:07]} 86. Ka7 {[%emt 0:00:25]} Qa3+ {[%emt 0:01:40]} 87. Kb8 {[%emt 0:01:02]} Qb2 {[%emt 0:01:05]} 88. Kb7 {[%emt 0:00:28]} Qg2+ {[%emt 0:00:11]} 1/2-1/2

[Event "12th National Amateur Chess-ch 2025"]
[Site "Bihar"]
[Date "2025.03.29"]
[Round "8.5"]
[White "Archisman Patra"]
[Black "Aman Balana"]
[Result "1-0"]
[Annotator "NA RC"]
[ECO "B22"]
[WhiteElo "1791"]
[BlackElo "1827"]
[PlyCount "82"]
[EventDate "2025.03.25"]
[EventCountry "IND"]
[SourceTitle "playchess.com"]
[Source "ChessBase"]
[SourceQuality "1"]
[TimeControl "5400+30"]

1. e4 {[%emt 0:03:24]} c5 {[%emt 0:00:02]} 2. c3 {[%emt 0:00:13]} Nf6 {[%emt 0:00:06]} 3. e5 {[%emt 0:00:09]} Nd5 {[%emt 0:00:02]} 4. Nf3 {[%emt 0:00:11]} d6 {[%emt 0:00:27]} 5. exd6 {[%emt 0:00:27]} e6 {[%emt 0:06:21]} 6. g3 {[%emt 0:00:21]} Bxd6 {[%emt 0:00:26]} 7. Bg2 {[%emt 0:00:05]} O-O {[%emt 0:01:06]} 8. O-O {[%emt 0:00:11]} Nc6 {[%emt 0:01:30]} 9. d4 {[%emt 0:00:15]} h6 {[%emt 0:09:59]} 10. b3 {[%emt 0:11:36]} cxd4 {[%emt 0:05:52]} 11. Nxd4 {[%emt 0:01:11]} Qf6 {[%emt 0:12:59]} 12. Nxc6 {[%emt 0:08:36]} bxc6 {[%emt 0:00:02]} 13. Bb2 {[%emt 0:00:50]} Rd8 {[%emt 0:11:27]} 14. Qe2 {[%emt 0:07:01]} Qe7 {[%emt 0:11:41]} 15. c4 {[%emt 0:10:12]} Ba6 {[%emt 0:01:14]} 16. Nc3 {[%emt 0:07:04]} Nxc3 {[%emt 0:02:26]} 17. Bxc3 {[%emt 0:00:22]} Rac8 {[%emt 0:01:30]} 18. Qg4 {[%emt 0:05:41]} Qg5 {[%emt 0:02:36]} 19. Qxg5 {[%emt 0:00:31]} hxg5 {[%emt 0:00:01]} 20. Rad1 {[%emt 0:00:44]} Kf8 {[%emt 0:14:14]} 21. Ba5 {[%emt 0:04:52]} Bc7 {[%emt 0:02:56]} 22. Bb4+ {[%emt 0:01:01]} Kg8 {[%emt 0:01:20]} 23. Bxc6 {[%emt 0:00:43]} Bb6 {[%emt 0:05:01]} 24. Bf3 {[%emt 0:03:51]} f5 {[%emt 0:02:02]} 25. g4 {[%emt 0:04:29]} g6 {[%emt 0:00:46]} 26. Be7 {[%emt 0:01:00]} Re8 {[%emt 0:02:53]} 27. Bxg5 {[%emt 0:00:33]} e5 {[%emt 0:01:42]} 28. Rd6 {[%emt 0:06:10]} e4 {[%emt 0:02:56]} 29. Be2 {[%emt 0:01:37]} Kh7 {[%emt 0:00:51]} 30. Rfd1 {[%emt 0:01:04]} Rc7 {[%emt 0:00:26]} 31. gxf5 {[%emt 0:01:42]} gxf5 {[%emt 0:00:15]} 32. Rh6+ {[%emt 0:00:12]} Kg8 {[%emt 0:00:26]} 33. Bf6 {[%emt 0:00:48]} Rh7 {[%emt 0:00:46]} 34. Rxh7 {[%emt 0:00:58]} Kxh7 {[%emt 0:00:02]} 35. Bg5 {[%emt 0:01:28]} Rg8 {[%emt 0:01:05]} 36. h4 {[%emt 0:00:02]} Bc8 {[%emt 0:00:17]} 37. Rd6 {[%emt 0:04:09]} f4 {[%emt 0:00:34]} 38. Bh5 {[%emt 0:01:48]} e3 {[%emt 0:00:35]} 39. fxe3 {[%emt 0:01:10]} fxe3 {[%emt 0:00:23]} 40. Kf1 {[%emt 0:00:36]} Bf5 {[%emt 0:00:41]} 41. Ke2 {[%emt 0:02:41]} Rf8 {[%emt 0:01:02]} 1-0

[Event "12th National Amateur Chess-ch 2025"]
[Site "Bihar"]
[Date "2025.03.29"]
[Round "8.6"]
[White "Pradeep Tiwari"]
[Black "Srikanth, K.."]
[Result "1/2-1/2"]
[Annotator "RC"]
[ECO "A81"]
[WhiteElo "1979"]
[BlackElo "1831"]
[PlyCount "62"]
[EventDate "2025.03.25"]
[EventCountry "IND"]
[SourceTitle "playchess.com"]
[Source "ChessBase"]
[SourceQuality "1"]
[TimeControl "5400+30"]

1. Nf3 {[%emt 0:00:06]} f5 {[%emt 0:04:52]} 2. d4 {[%emt 0:00:29]} Nf6 {[%emt 0:01:00]} 3. g3 {[%emt 0:00:18]} g6 {[%emt 0:00:10]} 4. Bg2 {[%emt 0:00:04]} Bg7 {[%emt 0:00:04]} 5. O-O {[%emt 0:00:06]} c5 {[%emt 0:00:31]} 6. c4 {[%emt 0:00:15]} O-O {[%emt 0:00:33]} 7. Nc3 {[%emt 0:00:05]} cxd4 {[%emt 0:00:10]} 8. Nxd4 {[%emt 0:00:07]} Nc6 {[%emt 0:00:06]} 9. Nxc6 {[%emt 0:00:14]} dxc6 {[%emt 0:00:10]} 10. e4 {[%emt 0:00:16]} Be6 {[%emt 0:00:22]} 11. Qe2 {[%emt 0:00:15]} Qe8 {[%emt 0:01:06]} 12. exf5 {[%emt 0:00:32]} Bxf5 {[%emt 0:00:06]} 13. Bf4 {[%emt 0:00:19]} Rd8 {[%emt 0:00:08]} 14. Rfd1 {[%emt 0:00:12]} Qf7 {[%emt 0:00:11]} 15. h3 {[%emt 0:00:14]} Qe6 {[%emt 0:00:16]} 16. Qxe6+ {[%emt 0:00:42]} Bxe6 {[%emt 0:00:06]} 17. c5 {[%emt 0:00:03]} Nd5 {[%emt 0:00:23]} 18. Nxd5 {[%emt 0:00:09]} Bxd5 {[%emt 0:00:07]} 19. Bxd5+ {[%emt 0:01:21]} Rxd5 {[%emt 0:00:21]} 20. Rxd5 {[%emt 0:00:25]} cxd5 {[%emt 0:00:05]} 21. Re1 {[%emt 0:00:06]} Kf7 {[%emt 0:00:15]} 22. Be5 {[%emt 0:00:23]} Bxe5 {[%emt 0:00:23]} 23. Rxe5 {[%emt 0:00:04]} e6 {[%emt 0:00:09]} 24. b4 {[%emt 0:00:16]} Ke7 {[%emt 0:00:22]} 25. Re2 {[%emt 0:00:08]} Kd7 {[%emt 0:00:08]} 26. f4 {[%emt 0:00:05]} a6 {[%emt 0:00:10]} 27. Kg2 {[%emt 0:00:06]} Re8 {[%emt 0:00:19]} 28. Kf3 {[%emt 0:00:07]} Ke7 {[%emt 0:00:15]} 29. Ke3 {[%emt 0:00:07]} Kf6 {[%emt 0:00:07]} 30. Kd4 {[%emt 0:00:03]} Rc8 {[%emt 0:00:09]} 31. a3 {[%emt 0:00:11]} h5 {[%emt 0:00:18]} 1/2-1/2

[Event "12th National Amateur Chess-ch 2025"]
[Site "Bihar"]
[Date "2025.03.29"]
[Round "8.7"]
[White "Shejal Sahil Sanjay"]
[Black "Gurung Rohit"]
[Result "0-1"]
[Annotator "RC"]
[ECO "A01"]
[WhiteElo "1864"]
[BlackElo "1902"]
[PlyCount "52"]
[EventDate "2025.03.25"]
[EventCountry "IND"]
[SourceTitle "playchess.com"]
[Source "ChessBase"]
[SourceQuality "1"]
[TimeControl "5400+30"]

1. b3 {[%emt 0:06:39]} e5 {[%emt 0:01:11]} 2. Bb2 {[%emt 0:00:02]} Nc6 {[%emt 0:00:52]} 3. c4 {[%emt 0:00:33]} Nf6 {[%emt 0:00:24]} 4. e3 {[%emt 0:00:12]} a6 {[%emt 0:04:10]} 5. a3 {[%emt 0:01:22]} d5 {[%emt 0:00:48]} 6. d4 {[%emt 0:00:06]} exd4 {[%emt 0:05:46]} 7. exd4 {[%emt 0:00:19]} Qe7+ {[%emt 0:06:12]} 8. Be2 {[%emt 0:00:58]} Bg4 {[%emt 0:00:48]} 9. Nd2 {[%emt 0:00:08]} O-O-O {[%emt 0:00:48]} 10. Ngf3 {[%emt 0:00:03]} Re8 {[%emt 0:06:47]} 11. Kf1 {[%emt 0:04:02]} Nd8 {[%emt 0:23:07]} 12. h3 {[%emt 0:00:50]} Bf5 {[%emt 0:01:14]} 13. Ne5 {[%emt 0:00:33]} Ne4 {[%emt 0:09:37]} 14. Nxe4 {[%emt 0:04:07]} Bxe4 {[%emt 0:01:20]} 15. Bg4+ {[%emt 0:00:15]} f5 {[%emt 0:06:21]} 16. Be2 {[%emt 0:00:16]} dxc4 {[%emt 0:02:18]} 17. bxc4 {[%emt 0:00:51]} Nc6 {[%emt 0:01:07]} 18. f3 {[%emt 0:02:03]} Nxe5 {[%emt 0:01:01]} 19. fxe4 {[%emt 0:00:11]} Nd7 {[%emt 0:06:49]} 20. exf5 {[%emt 0:00:29]} Qg5 {[%emt 0:01:00]} 21. Qc2 {[%emt 0:06:09]} Bd6 {[%emt 0:01:13]} 22. c5 {[%emt 0:00:27]} Bg3 {[%emt 0:00:57]} 23. c6 {[%emt 0:00:33]} Qe3 {[%emt 0:01:49]} 24. cxd7+ {[%emt 0:02:55]} Kxd7 {[%emt 0:02:15]} 25. Bb5+ {[%emt 0:01:57]} axb5 {[%emt 0:00:02]} 26. Bc3 {[%emt 0:00:01]} Re4 {[%emt 0:00:17]} 0-1

[Event "12th National Amateur Chess-ch 2025"]
[Site "Bihar"]
[Date "2025.03.29"]
[Round "8.8"]
[White "Rupesh B Ramchandra"]
[Black "Ayushman Mohanty"]
[Result "0-1"]
[Annotator "NA RC"]
[ECO "D35"]
[WhiteElo "1859"]
[BlackElo "1827"]
[PlyCount "98"]
[EventDate "2025.03.25"]
[EventCountry "IND"]
[SourceTitle "playchess.com"]
[Source "ChessBase"]
[SourceQuality "1"]
[TimeControl "5400+30"]

1. d4 {[%emt 0:05:49]} d5 {[%emt 0:00:20]} 2. c4 {[%emt 0:01:16]} e6 {[%emt 0:00:05]} 3. Nc3 {[%emt 0:00:07]} Nf6 {[%emt 0:00:04]} 4. cxd5 {[%emt 0:00:25]} exd5 {[%emt 0:00:05]} 5. Bg5 {[%emt 0:00:07]} Be7 {[%emt 0:00:13]} 6. e3 {[%emt 0:00:28]} c6 {[%emt 0:00:06]} 7. Bd3 {[%emt 0:00:27]} Nbd7 {[%emt 0:00:12]} 8. Nf3 {[%emt 0:01:04]} h6 {[%emt 0:00:18]} 9. Bh4 {[%emt 0:00:23]} Ne4 {[%emt 0:02:20]} 10. Bxe7 {[%emt 0:01:34]} Qxe7 {[%emt 0:00:15]} 11. Qc2 {[%emt 0:01:10]} f5 {[%emt 0:09:18]} 12. O-O {[%emt 0:02:08]} O-O {[%emt 0:00:38]} 13. Rab1 {[%emt 0:01:31]} a5 {[%emt 0:04:48]} 14. Rfe1 {[%emt 0:02:32]} Qd6 {[%emt 0:08:35]} 15. Nd2 {[%emt 0:01:40]} Ndf6 {[%emt 0:02:28]} 16. f3 {[%emt 0:02:00]} Nxd2 {[%emt 0:00:33]} 17. Qxd2 {[%emt 0:00:09]} Bd7 {[%emt 0:01:57]} 18. Na4 {[%emt 0:02:02]} Qc7 {[%emt 0:05:48]} 19. Qc2 {[%emt 0:06:20]} f4 {[%emt 0:04:15]} 20. e4 {[%emt 0:04:38]} dxe4 {[%emt 0:00:08]} 21. fxe4 {[%emt 0:00:15]} Ng4 {[%emt 0:03:12]} 22. e5 {[%emt 0:02:05]} Be6 {[%emt 0:08:57]} 23. Bc4 {[%emt 0:03:37]} Bxc4 {[%emt 0:01:54]} 24. Qxc4+ {[%emt 0:01:31]} Kh8 {[%emt 0:00:19]} 25. Qc3 {[%emt 0:03:07]} Ne3 {[%emt 0:07:06]} 26. Re2 {[%emt 0:10:58]} Qd7 {[%emt 0:07:57]} 27. Rd2 {[%emt 0:14:52]} Qg4 {[%emt 0:03:58]} 28. Nc5 {[%emt 0:02:20]} Rf5 {[%emt 0:07:18]} 29. Nxb7 {[%emt 0:02:53]} Qg6 {[%emt 0:02:38]} 30. Qd3 {[%emt 0:02:39]} Qe6 {[%emt 0:01:51]} 31. Nd6 {[%emt 0:02:07]} Rg5 {[%emt 0:00:09]} 32. Qb3 {[%emt 0:01:08]} Nd5 {[%emt 0:01:56]} 33. Rf1 {[%emt 0:00:23]} Rf8 {[%emt 0:00:33]} 34. Rdf2 {[%emt 0:01:05]} Qg6 {[%emt 0:02:17]} 35. Qf3 {[%emt 0:03:15]} Qe6 {[%emt 0:02:19]} 36. Rc1 {[%emt 0:00:29]} Qd7 {[%emt 0:03:11]} 37. Kh1 {[%emt 0:02:22]} Rg6 {[%emt 0:02:06]} 38. b3 {[%emt 0:03:59]} Kg8 {[%emt 0:02:33]} 39. Rc5 {[%emt 0:01:22]} a4 {[%emt 0:01:01]} 40. Qd3 {[%emt 0:05:58]} Qg4 {[%emt 0:02:00]} 41. Rc1 {[%emt 0:01:57]} Ne3 {[%emt 0:00:41]} 42. Qe2 {[%emt 0:01:16]} Qh4 {[%emt 0:00:28]} 43. h3 {[%emt 0:05:06]} Rg3 {[%emt 0:02:51]} 44. Ne4 {[%emt 0:00:37]} f3 {[%emt 0:00:31]} 45. gxf3 {[%emt 0:01:08]} Rxh3+ {[%emt 0:00:46]} 46. Rh2 {[%emt 0:00:11]} Rfxf3 {[%emt 0:00:04]} 47. e6 {[%emt 0:00:57]} Rxh2+ {[%emt 0:00:25]} 48. Qxh2 {[%emt 0:00:02]} Rh3 {[%emt 0:00:07]} 49. Nf6+ {[%emt 0:00:56]} gxf6 {[%emt 0:00:18]} 0-1